[Event "Late-Titled-Tuesday-Blitz-October-03-2023"]
[Site "Chess.com"]
[Date "2023.10.03"]
[Round "1"]
[White "aistrel"]
[Black "shirovin"]
[Result "0-1"]
[WhiteElo "2513"]
[BlackElo "2077"]
[TimeControl "180+1"]
[EndTime "14:08:03 PDT"]
[Termination "shirovin won by checkmate"]

1. d4 {[%clk 0:03:00.3]} 1... Nf6 {[%clk 0:02:58.9]} 2. Nc3 {[%clk 0:02:55.9]}
2... d6 {[%clk 0:02:58.2]} 3. e4 {[%clk 0:02:55.7]} 3... c6 {[%clk 0:02:57.2]}
4. f4 {[%clk 0:02:56.2]} 4... Qa5 {[%clk 0:02:56.5]} 5. e5 {[%clk 0:02:54.5]}
5... Nd5 {[%clk 0:02:55]} 6. Bd2 {[%clk 0:02:53.9]} 6... dxe5 {[%clk 0:02:54]}
7. fxe5 {[%clk 0:02:45.3]} 7... Nxc3 {[%clk 0:02:47.8]} 8. Bxc3 {[%clk
0:02:44.9]} 8... Qc7 {[%clk 0:02:48.2]} 9. Nf3 {[%clk 0:02:45.2]} 9... Bg4
{[%clk 0:02:46.4]} 10. h3 {[%clk 0:02:45.8]} 10... Bxf3 {[%clk 0:02:46.2]} 11.
Qxf3 {[%clk 0:02:46.7]} 11... e6 {[%clk 0:02:46.3]} 12. Bc4 {[%clk 0:02:46.7]}
12... Be7 {[%clk 0:02:45.4]} 13. O-O {[%clk 0:02:46.1]} 13... O-O {[%clk
0:02:44.8]} 14. a4 {[%clk 0:02:44.5]} 14... Nd7 {[%clk 0:02:43.1]} 15. Qg4
{[%clk 0:02:38.5]} 15... c5 {[%clk 0:02:40.5]} 16. Bxe6 {[%clk 0:02:27.7]} 16...
cxd4 {[%clk 0:02:24.9]} 17. Bxd4 {[%clk 0:02:21.9]} 17... Nxe5 {[%clk
0:02:23.1]} 18. Qe4 {[%clk 0:01:21.1]} 18... Nc6 {[%clk 0:02:08.7]} 19. Bxg7
{[%clk 0:00:56.5]} 19... Kxg7 {[%clk 0:02:01.9]} 20. Qg4+ {[%clk 0:00:56.3]}
20... Kh8 {[%clk 0:01:56.8]} 21. Bf5 {[%clk 0:00:40.5]} 21... Bc5+ {[%clk
0:01:49.6]} 22. Kh1 {[%clk 0:00:40.1]} 22... Nd4 {[%clk 0:01:49.3]} 23. Bd3
{[%clk 0:00:38.4]} 23... Rg8 {[%clk 0:01:39.5]} 24. Qh5 {[%clk 0:00:35.5]} 24...
Rg7 {[%clk 0:01:33.8]} 25. Rf6 {[%clk 0:00:34.9]} 25... Qg3 {[%clk 0:01:14.8]}
26. Rg1 {[%clk 0:00:20.4]} 26... Bd6 {[%clk 0:01:08.2]} 27. Rxd6 {[%clk
0:00:15.3]} 27... Qxd6 {[%clk 0:01:06.4]} 28. Rf1 {[%clk 0:00:16.2]} 28... Qg3
{[%clk 0:00:58.3]} 29. Be4 {[%clk 0:00:15.3]} 29... Rag8 {[%clk 0:00:51.8]} 30.
c3 {[%clk 0:00:15.1]} 30... Ne6 {[%clk 0:00:49.5]} 31. Bxb7 {[%clk 0:00:15.6]}
31... Nf4 {[%clk 0:00:47.7]} 32. Qe5 {[%clk 0:00:12.7]} 32... Nxg2 {[%clk
0:00:45.1]} 33. Qxg3 {[%clk 0:00:12.8]} 33... Rxg3 {[%clk 0:00:44.4]} 34. Rxf7
{[%clk 0:00:13.6]} 34... Rxh3+ {[%clk 0:00:40.8]} 35. Kg1 {[%clk 0:00:13.6]}
35... Ne3+ {[%clk 0:00:37.8]} 36. Kf2 {[%clk 0:00:14.5]} 36... Ng4+ {[%clk
0:00:37.1]} 37. Ke2 {[%clk 0:00:14.3]} 37... Ne5 {[%clk 0:00:35.3]} 38. Re7
{[%clk 0:00:13]} 38... Ng6 {[%clk 0:00:32.2]} 39. Rf7 {[%clk 0:00:09.9]} 39...
Rh2+ {[%clk 0:00:31.7]} 40. Kd3 {[%clk 0:00:10.4]} 40... Rxb2 {[%clk 0:00:30.7]}
41. Kd4 {[%clk 0:00:08.2]} 41... Rd8+ {[%clk 0:00:27.3]} 42. Kc5 {[%clk
0:00:06.4]} 42... Ne5 {[%clk 0:00:23.9]} 43. Re7 {[%clk 0:00:05.9]} 43... Rd7
{[%clk 0:00:21.8]} 44. Re8+ {[%clk 0:00:05.5]} 44... Kg7 {[%clk 0:00:21.6]} 45.
Be4 {[%clk 0:00:06.4]} 45... Re2 {[%clk 0:00:17.8]} 46. Bc6 {[%clk 0:00:06.2]}
46... Rc7 {[%clk 0:00:15.9]} 47. Kd6 {[%clk 0:00:05.6]} 47... Rxc6+ {[%clk
0:00:15.9]} 48. Kd5 {[%clk 0:00:06.3]} 48... Rc7 {[%clk 0:00:15]} 49. c4 {[%clk
0:00:05.6]} 49... Rd7+ {[%clk 0:00:14.9]} 50. Kc5 {[%clk 0:00:04]} 50... Re3
{[%clk 0:00:11.6]} 51. Ra8 {[%clk 0:00:01.4]} 51... Red3 {[%clk 0:00:09.2]} 52.
a5 {[%clk 0:00:01.6]} 52... R3d4 {[%clk 0:00:09.1]} 53. a6 {[%clk 0:00:01.9]}
53... Rxc4+ {[%clk 0:00:09.1]} 54. Kb5 {[%clk 0:00:02.8]} 54... Rd5# {[%clk
0:00:08.2]} 0-1

[Event "Late-Titled-Tuesday-Blitz-October-03-2023"]
[Site "Chess.com"]
[Date "2023.10.03"]
[Round "1"]
[White "Qvalda"]
[Black "Rutricks"]
[Result "0-1"]
[WhiteElo "2384"]
[BlackElo "2701"]
[TimeControl "180+1"]
[EndTime "14:08:04 PDT"]
[Termination "Rutricks won by resignation"]

1. Nf3 {[%clk 0:03:00.9]} 1... g6 {[%clk 0:02:59]} 2. e4 {[%clk 0:02:59.1]} 2...
Bg7 {[%clk 0:02:59.9]} 3. d4 {[%clk 0:02:59.1]} 3... c6 {[%clk 0:02:58.4]} 4.
Nc3 {[%clk 0:02:53.4]} 4... d5 {[%clk 0:02:59.3]} 5. h3 {[%clk 0:02:50.1]} 5...
dxe4 {[%clk 0:02:59.7]} 6. Nxe4 {[%clk 0:02:49.2]} 6... Nf6 {[%clk 0:03:00.6]}
7. Nxf6+ {[%clk 0:02:47.4]} 7... exf6 {[%clk 0:03:01.5]} 8. Bd3 {[%clk
0:02:41.7]} 8... O-O {[%clk 0:03:02.4]} 9. Be3 {[%clk 0:02:40.5]} 9... a5 {[%clk
0:03:03.3]} 10. O-O {[%clk 0:02:39.2]} 10... Na6 {[%clk 0:03:04.2]} 11. a3
{[%clk 0:02:38.8]} 11... Nc7 {[%clk 0:03:03.9]} 12. c4 {[%clk 0:02:37.2]} 12...
Be6 {[%clk 0:03:04.3]} 13. Qc2 {[%clk 0:02:32.4]} 13... Re8 {[%clk 0:03:04.1]}
14. Rfd1 {[%clk 0:02:31.4]} 14... Qd7 {[%clk 0:03:04]} 15. b4 {[%clk 0:02:25.3]}
15... Bf8 {[%clk 0:02:57.9]} 16. Qb2 {[%clk 0:02:15.6]} 16... axb4 {[%clk
0:02:14.3]} 17. axb4 {[%clk 0:02:16.5]} 17... Bf5 {[%clk 0:01:59.6]} 18. Bf1
{[%clk 0:02:06.6]} 18... Be4 {[%clk 0:01:44.2]} 19. Nd2 {[%clk 0:02:01.5]} 19...
Bf5 {[%clk 0:01:28.7]} 20. Nf3 {[%clk 0:02:01.6]} 20... Bg7 {[%clk 0:01:23.8]}
21. Rxa8 {[%clk 0:01:58.9]} 21... Rxa8 {[%clk 0:01:23.1]} 22. Ra1 {[%clk
0:01:59.8]} 22... Re8 {[%clk 0:01:17.2]} 23. Ra7 {[%clk 0:01:58.1]} 23... Qc8
{[%clk 0:01:17.3]} 24. Qa3 {[%clk 0:01:54.3]} 24... Bf8 {[%clk 0:01:16]} 25. Qa5
{[%clk 0:01:53.3]} 25... Ne6 {[%clk 0:00:46.1]} 26. Qb6 {[%clk 0:01:51.7]} 26...
Re7 {[%clk 0:00:37.6]} 27. d5 {[%clk 0:01:52.1]} 27... cxd5 {[%clk 0:00:32.1]}
28. cxd5 {[%clk 0:01:53]} 28... Nd8 {[%clk 0:00:32]} 29. Qxf6 {[%clk 0:01:35.7]}
29... Rxe3 {[%clk 0:00:22.7]} 30. fxe3 {[%clk 0:01:29.4]} 30... Bxb4 {[%clk
0:00:23.5]} 31. Qa1 {[%clk 0:01:05.5]} 31... Bc5 {[%clk 0:00:21.6]} 32. Ra8
{[%clk 0:01:04.3]} 32... Bxe3+ {[%clk 0:00:21.7]} 33. Kh1 {[%clk 0:01:04.9]}
33... Qc7 {[%clk 0:00:18.2]} 34. Qf6 {[%clk 0:00:57.6]} 34... Bb6 {[%clk
0:00:18.4]} 35. d6 {[%clk 0:00:56]} 35... Qc1 {[%clk 0:00:14.5]} 36. Rxd8+
{[%clk 0:00:51.2]} 36... Bxd8 {[%clk 0:00:15.4]} 37. Qxd8+ {[%clk 0:00:51.2]}
37... Kg7 {[%clk 0:00:15.7]} 38. Nh2 {[%clk 0:00:47.1]} 38... Bd3 {[%clk
0:00:15.3]} 39. Kg1 {[%clk 0:00:46.5]} 39... Qe3+ {[%clk 0:00:15.1]} 40. Kh1
{[%clk 0:00:44.2]} 40... Qe1 {[%clk 0:00:13.7]} 41. Qe7 {[%clk 0:00:40.4]} 41...
Qa1 {[%clk 0:00:10.5]} 42. d7 {[%clk 0:00:16.9]} 42... Bxf1 {[%clk 0:00:10.8]}
43. Nxf1 {[%clk 0:00:14.7]} 43... Qxf1+ {[%clk 0:00:10.6]} 44. Kh2 {[%clk
0:00:15.3]} 44... Qf4+ {[%clk 0:00:10.8]} 45. Kg1 {[%clk 0:00:15.2]} 45... Qc1+
{[%clk 0:00:11]} 46. Kf2 {[%clk 0:00:14.3]} 46... Qd2+ {[%clk 0:00:11.6]} 47.
Kf3 {[%clk 0:00:13.5]} 47... Qd3+ {[%clk 0:00:11.6]} 48. Kf4 {[%clk 0:00:12.8]}
48... Qd2+ {[%clk 0:00:05.9]} 49. Ke5 {[%clk 0:00:11.4]} 49... Qc3+ {[%clk
0:00:05.5]} 50. Kd5 {[%clk 0:00:10.6]} 50... Qd3+ {[%clk 0:00:04.2]} 51. Ke5
{[%clk 0:00:10]} 51... Qe3+ {[%clk 0:00:03.3]} 52. Kd6 {[%clk 0:00:07.2]} 52...
Qa3+ {[%clk 0:00:04]} 53. Kc7 {[%clk 0:00:06.4]} 53... Qxe7 {[%clk 0:00:04.6]}
54. Kc8 {[%clk 0:00:07.3]} 54... Qxd7+ {[%clk 0:00:04]} 55. Kxd7 {[%clk
0:00:07.4]} 55... Kf6 {[%clk 0:00:04.4]} 56. Kd6 {[%clk 0:00:06.9]} 56... Kf5
{[%clk 0:00:05.2]} 57. Kc5 {[%clk 0:00:06.4]} 57... Kf4 {[%clk 0:00:05.6]} 0-1

[Event "Late-Titled-Tuesday-Blitz-October-03-2023"]
[Site "Chess.com"]
[Date "2023.10.03"]
[Round "1"]
[White "yoelpolanco"]
[Black "louis198"]
[Result "0-1"]
[WhiteElo "2317"]
[BlackElo "2618"]
[TimeControl "180+1"]
[EndTime "14:08:04 PDT"]
[Termination "louis198 won by resignation"]

1. d4 {[%clk 0:03:00]} 1... Nf6 {[%clk 0:03:00]} 2. c4 {[%clk 0:02:59.9]} 2...
d6 {[%clk 0:03:00.8]} 3. Nc3 {[%clk 0:02:59.6]} 3... g6 {[%clk 0:03:01.6]} 4.
Nf3 {[%clk 0:02:57.3]} 4... Bg7 {[%clk 0:03:02.5]} 5. e4 {[%clk 0:02:57.5]} 5...
O-O {[%clk 0:03:03.4]} 6. Be2 {[%clk 0:02:57.7]} 6... Nbd7 {[%clk 0:03:04.3]} 7.
O-O {[%clk 0:02:58]} 7... e5 {[%clk 0:03:05.2]} 8. Be3 {[%clk 0:02:54.8]} 8...
Ng4 {[%clk 0:03:05.6]} 9. Bg5 {[%clk 0:02:54.5]} 9... f6 {[%clk 0:03:06]} 10.
Bd2 {[%clk 0:02:55.1]} 10... f5 {[%clk 0:03:06.4]} 11. Bg5 {[%clk 0:02:50.3]}
11... Ngf6 {[%clk 0:03:06.5]} 12. dxe5 {[%clk 0:02:46.3]} 12... dxe5 {[%clk
0:03:06.8]} 13. Qd2 {[%clk 0:02:39]} 13... fxe4 {[%clk 0:02:57.5]} 14. Ne1
{[%clk 0:02:30.9]} 14... Nc5 {[%clk 0:02:54.1]} 15. Qe3 {[%clk 0:02:29.1]} 15...
Qd4 {[%clk 0:02:51.4]} 16. Nc2 {[%clk 0:02:25.1]} 16... Qxe3 {[%clk 0:02:51.4]}
17. Bxe3 {[%clk 0:02:24]} 17... Nd3 {[%clk 0:02:50.1]} 18. Rab1 {[%clk
0:02:13.3]} 18... Bf5 {[%clk 0:02:46.6]} 19. h3 {[%clk 0:02:11.2]} 19... h5
{[%clk 0:02:46.5]} 20. Bg5 {[%clk 0:02:08.9]} 20... Nf4 {[%clk 0:02:43.2]} 21.
Ne3 {[%clk 0:02:00.6]} 21... c6 {[%clk 0:02:40]} 22. Rfd1 {[%clk 0:01:57.8]}
22... Be6 {[%clk 0:02:39.8]} 23. Bxf6 {[%clk 0:01:56.1]} 23... Bxf6 {[%clk
0:02:39.7]} 24. Bf1 {[%clk 0:01:56.2]} 24... Be7 {[%clk 0:02:37.1]} 25. Nxe4
{[%clk 0:01:55.6]} 25... Rad8 {[%clk 0:02:30.5]} 26. b3 {[%clk 0:01:55.5]} 26...
h4 {[%clk 0:02:25.3]} 27. Ng4 {[%clk 0:01:46.9]} 27... Bxg4 {[%clk 0:02:21.7]}
28. hxg4 {[%clk 0:01:47.8]} 28... Rd4 {[%clk 0:02:18]} 29. Rxd4 {[%clk
0:01:42.5]} 29... exd4 {[%clk 0:02:18]} 30. Rd1 {[%clk 0:01:43.4]} 30... c5
{[%clk 0:02:18.3]} 31. Bd3 {[%clk 0:01:31]} 31... b6 {[%clk 0:02:17.1]} 32. g3
{[%clk 0:01:22.9]} 32... hxg3 {[%clk 0:02:17.1]} 33. fxg3 {[%clk 0:01:22.6]}
33... Nxd3 {[%clk 0:02:06.8]} 34. Rxd3 {[%clk 0:01:22.5]} 34... Re8 {[%clk
0:02:07.7]} 35. Kf2 {[%clk 0:01:19.1]} 35... Kg7 {[%clk 0:02:04]} 36. Kf3 {[%clk
0:01:15]} 36... Rf8+ {[%clk 0:02:03.9]} 37. Kg2 {[%clk 0:01:14.6]} 37... a5
{[%clk 0:02:03]} 38. a4 {[%clk 0:01:12.9]} 38... Re8 {[%clk 0:02:02]} 39. Kf3
{[%clk 0:01:12.6]} 39... Bf8 {[%clk 0:01:59.4]} 40. Rd1 {[%clk 0:01:10.9]} 40...
Re7 {[%clk 0:01:57.5]} 41. g5 {[%clk 0:01:07.6]} 41... Re5 {[%clk 0:01:57.4]}
42. Kf4 {[%clk 0:01:05.7]} 42... Rf5+ {[%clk 0:01:56.7]} 43. Kg4 {[%clk
0:01:04.8]} 43... Be7 {[%clk 0:01:57.2]} 44. Rh1 {[%clk 0:00:59.6]} 44... Bd8
{[%clk 0:01:53.9]} 45. Rd1 {[%clk 0:00:56]} 45... Bc7 {[%clk 0:01:53.7]} 46. Rh1
{[%clk 0:00:56.1]} 46... Re5 {[%clk 0:01:53.8]} 47. Kf3 {[%clk 0:00:55.6]} 47...
Re8 {[%clk 0:01:49.7]} 48. Nf6 {[%clk 0:00:54.1]} 48... Re3+ {[%clk 0:01:45.1]}
49. Kf2 {[%clk 0:00:46.6]} 49... Bxg3+ {[%clk 0:01:43.7]} 50. Kg2 {[%clk
0:00:46.8]} 50... Kf7 {[%clk 0:01:38]} 51. Rh7+ {[%clk 0:00:44.8]} 51... Ke6
{[%clk 0:01:38.8]} 52. Nd5 {[%clk 0:00:44.5]} 52... Rxb3 {[%clk 0:01:37.7]} 53.
Rh3 {[%clk 0:00:36.7]} 53... d3 {[%clk 0:01:23.5]} 54. Rxg3 {[%clk 0:00:35.1]}
54... d2 {[%clk 0:01:22.9]} 55. Ne3 {[%clk 0:00:35]} 55... Rb1 {[%clk
0:01:15.6]} 56. Rf3 {[%clk 0:00:28.3]} 56... Ke5 {[%clk 0:01:13.8]} 57. Rf2
{[%clk 0:00:25.1]} 57... d1=Q {[%clk 0:01:10]} 58. Nxd1 {[%clk 0:00:24.8]} 58...
Rxd1 {[%clk 0:01:10.9]} 59. Rf6 {[%clk 0:00:25.5]} 59... Rd6 {[%clk 0:01:11.3]}
60. Rf8 {[%clk 0:00:18.4]} 60... Kd4 {[%clk 0:01:11.2]} 61. Rf4+ {[%clk
0:00:18.9]} 61... Kc3 {[%clk 0:01:11.8]} 62. Kf3 {[%clk 0:00:18.7]} 62... Kb4
{[%clk 0:01:10.9]} 63. Ke4 {[%clk 0:00:19.2]} 63... Kxc4 {[%clk 0:01:09.3]} 64.
Ke5+ {[%clk 0:00:19.5]} 64... Rd4 {[%clk 0:01:10.2]} 65. Rf6 {[%clk 0:00:19.3]}
65... Rg4 {[%clk 0:01:07.2]} 66. Rxg6 {[%clk 0:00:19.3]} 66... Kd3 {[%clk
0:01:06.5]} 67. Kf5 {[%clk 0:00:19.7]} 67... Rg1 {[%clk 0:01:06.8]} 68. Rxb6
{[%clk 0:00:20.5]} 68... c4 {[%clk 0:01:07.4]} 69. g6 {[%clk 0:00:19.2]} 69...
c3 {[%clk 0:01:08.1]} 70. Rd6+ {[%clk 0:00:17]} 70... Kc4 {[%clk 0:01:07.9]} 71.
Rc6+ {[%clk 0:00:16.5]} 71... Kb3 {[%clk 0:01:08.3]} 72. Rc5 {[%clk 0:00:15.8]}
72... c2 {[%clk 0:01:08.2]} 73. Kf6 {[%clk 0:00:15.8]} 73... c1=Q {[%clk
0:01:07.9]} 74. Rxc1 {[%clk 0:00:14.5]} 74... Rxc1 {[%clk 0:01:08]} 75. g7
{[%clk 0:00:15.4]} 75... Rg1 {[%clk 0:01:08.1]} 76. Kf7 {[%clk 0:00:15]} 76...
Kxa4 {[%clk 0:01:08.5]} 0-1

[Event "Late-Titled-Tuesday-Blitz-October-03-2023"]
[Site "Chess.com"]
[Date "2023.10.03"]
[Round "1"]
[White "martinbitel"]
[Black "Real_taiatai"]
[Result "1-0"]
[WhiteElo "2245"]
[BlackElo "2550"]
[TimeControl "180+1"]
[EndTime "14:08:04 PDT"]
[Termination "martinbitel won by checkmate"]

1. d4 {[%clk 0:02:59.5]} 1... d5 {[%clk 0:02:59.6]} 2. c4 {[%clk 0:02:59.1]}
2... e6 {[%clk 0:02:57.7]} 3. Nf3 {[%clk 0:02:58.1]} 3... Nf6 {[%clk 0:02:57.5]}
4. g3 {[%clk 0:02:58]} 4... Be7 {[%clk 0:02:55.8]} 5. Bg2 {[%clk 0:02:58]} 5...
O-O {[%clk 0:02:55.8]} 6. O-O {[%clk 0:02:58]} 6... dxc4 {[%clk 0:02:52.7]} 7.
Ne5 {[%clk 0:02:57.3]} 7... Nc6 {[%clk 0:02:26.9]} 8. Nxc6 {[%clk 0:02:56.8]}
8... bxc6 {[%clk 0:02:27.8]} 9. Na3 {[%clk 0:02:56.9]} 9... Bxa3 {[%clk
0:02:23.3]} 10. bxa3 {[%clk 0:02:57.8]} 10... Bb7 {[%clk 0:02:21.9]} 11. a4
{[%clk 0:02:39.6]} 11... Nd5 {[%clk 0:02:20.1]} 12. Ba3 {[%clk 0:02:34.8]} 12...
Re8 {[%clk 0:02:15.3]} 13. Qc2 {[%clk 0:02:24.4]} 13... Ba6 {[%clk 0:01:55.2]}
14. Bc5 {[%clk 0:02:04.2]} 14... e5 {[%clk 0:01:28.6]} 15. e4 {[%clk 0:01:19.1]}
15... Nf6 {[%clk 0:01:13.2]} 16. dxe5 {[%clk 0:01:12.7]} 16... Rxe5 {[%clk
0:01:14.1]} 17. Be3 {[%clk 0:01:12.6]} 17... Qe8 {[%clk 0:01:12.8]} 18. f4
{[%clk 0:01:02.4]} 18... Rxe4 {[%clk 0:00:57.3]} 19. Bxe4 {[%clk 0:01:00.3]}
19... Nxe4 {[%clk 0:00:58.2]} 20. Bf2 {[%clk 0:00:49.5]} 20... f5 {[%clk
0:00:57.1]} 21. Rfe1 {[%clk 0:00:48.9]} 21... c5 {[%clk 0:00:54.7]} 22. Bxc5
{[%clk 0:00:44.1]} 22... Qc6 {[%clk 0:00:53.9]} 23. Bf2 {[%clk 0:00:40.2]} 23...
Bb7 {[%clk 0:00:48.1]} 24. Bd4 {[%clk 0:00:24.7]} 24... Nxg3 {[%clk 0:00:28.5]}
25. Rac1 {[%clk 0:00:08.9]} 25... Qh1+ {[%clk 0:00:26.2]} 26. Kf2 {[%clk
0:00:09.1]} 26... Qxh2+ {[%clk 0:00:26.8]} 27. Ke3 {[%clk 0:00:09.1]} 27... Re8+
{[%clk 0:00:26.7]} 28. Be5 {[%clk 0:00:06.8]} 28... Qh3 {[%clk 0:00:19.2]} 29.
Qxc4+ {[%clk 0:00:06.1]} 29... Kh8 {[%clk 0:00:18.2]} 30. Kd2 {[%clk 0:00:05]}
30... Ne4+ {[%clk 0:00:18.3]} 31. Kc2 {[%clk 0:00:05]} 31... Qg2+ {[%clk
0:00:17.1]} 32. Kb1 {[%clk 0:00:05.1]} 32... Rb8 {[%clk 0:00:14.2]} 33. Ka1
{[%clk 0:00:04.9]} 33... Qf2 {[%clk 0:00:13.5]} 34. Qd4 {[%clk 0:00:05]} 34...
Qxd4+ {[%clk 0:00:12.5]} 35. Bxd4 {[%clk 0:00:05.4]} 35... Rd8 {[%clk
0:00:12.2]} 36. Be5 {[%clk 0:00:05.2]} 36... Rd2 {[%clk 0:00:12.6]} 37. Rxc7
{[%clk 0:00:05.4]} 37... Ba6 {[%clk 0:00:12.1]} 38. Rxa7 {[%clk 0:00:05]} 38...
Bc8 {[%clk 0:00:06.9]} 39. Ra8 {[%clk 0:00:05.3]} 39... Rc2 {[%clk 0:00:06.9]}
40. Rd1 {[%clk 0:00:04.2]} 40... h6 {[%clk 0:00:07.8]} 41. Rd8+ {[%clk
0:00:04.1]} 41... Kh7 {[%clk 0:00:08.7]} 42. Rdxc8 {[%clk 0:00:04.9]} 42... Nc3
{[%clk 0:00:08.6]} 43. Rxc3 {[%clk 0:00:04.4]} 43... Rxa2+ {[%clk 0:00:09.5]}
44. Kxa2 {[%clk 0:00:04.3]} 44... Kg6 {[%clk 0:00:10.4]} 45. a5 {[%clk
0:00:04.9]} 45... Kh5 {[%clk 0:00:11.3]} 46. a6 {[%clk 0:00:05.7]} 46... Kg4
{[%clk 0:00:12.1]} 47. a7 {[%clk 0:00:06.6]} 47... g6 {[%clk 0:00:04.2]} 48. Rb8
{[%clk 0:00:07.5]} 48... h5 {[%clk 0:00:04.4]} 49. a8=Q {[%clk 0:00:07.4]} 49...
Kh4 {[%clk 0:00:05.3]} 50. Qc6 {[%clk 0:00:05.5]} 50... g5 {[%clk 0:00:05.6]}
51. Re3 {[%clk 0:00:05.7]} 51... g4 {[%clk 0:00:06.5]} 52. Re2 {[%clk
0:00:05.6]} 52... g3 {[%clk 0:00:07.4]} 53. Qf3 {[%clk 0:00:05.6]} 53... Kh3
{[%clk 0:00:07.7]} 54. Rh8 {[%clk 0:00:05.1]} 54... h4 {[%clk 0:00:08.6]} 55.
Qg2+ {[%clk 0:00:04.4]} 55... Kg4 {[%clk 0:00:08.7]} 56. Rg8+ {[%clk 0:00:04.7]}
56... Kh5 {[%clk 0:00:09.6]} 57. Qf3+ {[%clk 0:00:04.9]} 57... Kh6 {[%clk
0:00:09.9]} 58. Rh8+ {[%clk 0:00:05]} 58... Kg6 {[%clk 0:00:09.8]} 59. Qh5#
{[%clk 0:00:05]} 1-0

[Event "Late-Titled-Tuesday-Blitz-October-03-2023"]
[Site "Chess.com"]
[Date "2023.10.03"]
[Round "1"]
[White "lemures27"]
[Black "BardArtem"]
[Result "0-1"]
[WhiteElo "2428"]
[BlackElo "2789"]
[TimeControl "180+1"]
[EndTime "14:08:05 PDT"]
[Termination "BardArtem won by resignation"]

1. e4 {[%clk 0:03:00.1]} 1... e5 {[%clk 0:02:59.4]} 2. Nf3 {[%clk 0:03:00.5]}
2... Nc6 {[%clk 0:02:59.8]} 3. Bb5 {[%clk 0:02:58.3]} 3... Nge7 {[%clk
0:02:59.5]} 4. Nc3 {[%clk 0:02:55.4]} 4... Ng6 {[%clk 0:02:57.4]} 5. O-O {[%clk
0:02:52.4]} 5... a6 {[%clk 0:02:55.4]} 6. Bc4 {[%clk 0:02:50.7]} 6... Be7 {[%clk
0:02:51]} 7. d4 {[%clk 0:02:47.4]} 7... exd4 {[%clk 0:02:49.9]} 8. Nxd4 {[%clk
0:02:47.4]} 8... d6 {[%clk 0:02:42.4]} 9. Nf5 {[%clk 0:02:46.1]} 9... Bxf5
{[%clk 0:02:35.1]} 10. exf5 {[%clk 0:02:45.6]} 10... Nge5 {[%clk 0:02:36]} 11.
Bd5 {[%clk 0:02:44.9]} 11... O-O {[%clk 0:02:34]} 12. Be3 {[%clk 0:02:39.5]}
12... Bf6 {[%clk 0:02:17.7]} 13. a3 {[%clk 0:02:35.1]} 13... Re8 {[%clk
0:02:00.6]} 14. Re1 {[%clk 0:02:32.7]} 14... Rb8 {[%clk 0:01:50.6]} 15. f4
{[%clk 0:02:25.1]} 15... Nd7 {[%clk 0:01:47.7]} 16. Qd2 {[%clk 0:02:23]} 16...
Ne7 {[%clk 0:01:32.8]} 17. Be4 {[%clk 0:02:21.3]} 17... Bxc3 {[%clk 0:01:05.2]}
18. Qxc3 {[%clk 0:02:14.4]} 18... Nf6 {[%clk 0:01:06.1]} 19. Qd3 {[%clk
0:02:00.8]} 19... Qd7 {[%clk 0:00:36.6]} 20. Ba7 {[%clk 0:01:49.6]} 20... Ra8
{[%clk 0:00:35]} 21. Bd4 {[%clk 0:01:48.9]} 21... Nxe4 {[%clk 0:00:31.4]} 22.
Rxe4 {[%clk 0:01:36.6]} 22... Nxf5 {[%clk 0:00:31.2]} 23. Bf2 {[%clk 0:01:34.5]}
23... h6 {[%clk 0:00:06.6]} 24. Rae1 {[%clk 0:01:32.1]} 24... Rxe4 {[%clk
0:00:07]} 25. Qxe4 {[%clk 0:01:31.4]} 25... d5 {[%clk 0:00:06.3]} 26. Qe2 {[%clk
0:01:28.3]} 26... Nd6 {[%clk 0:00:05.7]} 27. Qe5 {[%clk 0:01:25.6]} 27... Ne4
{[%clk 0:00:04.6]} 28. Bd4 {[%clk 0:01:21.2]} 28... f6 {[%clk 0:00:04.3]} 29.
Qh5 {[%clk 0:01:21]} 29... Re8 {[%clk 0:00:03]} 30. b4 {[%clk 0:01:19.4]} 30...
Qf7 {[%clk 0:00:03.5]} 31. Qf3 {[%clk 0:01:17.8]} 31... b6 {[%clk 0:00:04.1]}
32. Qd3 {[%clk 0:01:16.4]} 32... c5 {[%clk 0:00:04.4]} 33. Be3 {[%clk
0:01:14.7]} 33... d4 {[%clk 0:00:04.8]} 34. Bc1 {[%clk 0:01:14]} 34... Nd6
{[%clk 0:00:03]} 35. Bd2 {[%clk 0:01:10.8]} 35... Rxe1+ {[%clk 0:00:03]} 36.
Bxe1 {[%clk 0:01:11]} 36... Qc4 {[%clk 0:00:03.9]} 37. Qd1 {[%clk 0:01:07.9]}
37... Ne4 {[%clk 0:00:03.3]} 38. h3 {[%clk 0:01:04.9]} 38... Nc3 {[%clk
0:00:03.5]} 39. Bxc3 {[%clk 0:01:01.9]} 39... Qxc3 {[%clk 0:00:04.4]} 40. bxc5
{[%clk 0:01:01.9]} 40... bxc5 {[%clk 0:00:05.3]} 41. Qe2 {[%clk 0:01:01.4]}
41... Qa1+ {[%clk 0:00:02.1]} 42. Kh2 {[%clk 0:01:00.7]} 42... Qxa3 {[%clk
0:00:02.7]} 43. Qe8+ {[%clk 0:00:59.2]} 43... Kh7 {[%clk 0:00:02]} 44. Qe4+
{[%clk 0:00:58.8]} 44... f5 {[%clk 0:00:02.5]} 45. Qxf5+ {[%clk 0:00:58.5]}
45... Kg8 {[%clk 0:00:03.3]} 46. Qc8+ {[%clk 0:00:56.3]} 46... Kf7 {[%clk
0:00:03.2]} 47. Qd7+ {[%clk 0:00:56.4]} 47... Kf6 {[%clk 0:00:03.1]} 48. Qd6+
{[%clk 0:00:54]} 48... Kf7 {[%clk 0:00:03.8]} 49. Qd7+ {[%clk 0:00:53.6]} 49...
Kf6 {[%clk 0:00:03.6]} 50. Qd6+ {[%clk 0:00:53.6]} 50... Kf5 {[%clk 0:00:04]}
51. Qe5+ {[%clk 0:00:53.4]} 51... Kg6 {[%clk 0:00:04.5]} 52. f5+ {[%clk
0:00:53.6]} 52... Kh7 {[%clk 0:00:04]} 53. Qe4 {[%clk 0:00:53.8]} 53... Qe3
{[%clk 0:00:02.8]} 54. Qg4 {[%clk 0:00:49.5]} 54... Qe5+ {[%clk 0:00:02.8]} 55.
Kg1 {[%clk 0:00:49.2]} 55... Qe1+ {[%clk 0:00:03]} 56. Kh2 {[%clk 0:00:49.1]}
56... Qe5+ {[%clk 0:00:03.9]} 57. Kg1 {[%clk 0:00:49.1]} 57... Qf6 {[%clk
0:00:04.8]} 58. h4 {[%clk 0:00:47.3]} 58... a5 {[%clk 0:00:04.8]} 59. h5 {[%clk
0:00:47.4]} 59... a4 {[%clk 0:00:04.1]} 60. Qf3 {[%clk 0:00:46.6]} 60... Qa6
{[%clk 0:00:03.8]} 61. Qe4 {[%clk 0:00:46.2]} 61... Qf6 {[%clk 0:00:03.6]} 62.
Qf3 {[%clk 0:00:45.8]} 62... c4 {[%clk 0:00:03.6]} 63. Qa3 {[%clk 0:00:39.4]}
63... Qa6 {[%clk 0:00:02.6]} 64. Kf2 {[%clk 0:00:36.8]} 64... d3 {[%clk
0:00:03.2]} 65. cxd3 {[%clk 0:00:36.2]} 65... cxd3 {[%clk 0:00:04.1]} 66. Ke3
{[%clk 0:00:36.3]} 66... Qb5 {[%clk 0:00:04.4]} 67. Qxd3 {[%clk 0:00:34.3]}
67... Qxd3+ {[%clk 0:00:05]} 68. Kxd3 {[%clk 0:00:34.7]} 68... Kg8 {[%clk
0:00:05.9]} 69. Kc4 {[%clk 0:00:33.7]} 69... Kf7 {[%clk 0:00:06.4]} 70. Kb4
{[%clk 0:00:34.3]} 70... Kf6 {[%clk 0:00:07]} 71. Kxa4 {[%clk 0:00:34.3]} 71...
Kxf5 {[%clk 0:00:07.5]} 0-1